bitfinex/quotes_BTCUSD_20241111
["timestamp","ask_amount","ask_price","bid_price","bid_amount"]
[1731304504456,0.104343,80529.0,80528.0,0.000702]
[1731304504663,0.12683934,80529.0,80528.0,0.000702]
[1731304504891,0.15765678,80529.0,80528.0,0.000702]
[1731304505049,0.26265678,80529.0,80528.0,0.000702]
[1731304505430,0.34778155,80529.0,80528.0,0.002702]
[1731304506625,0.42349561,80529.0,80528.0,0.002702]
[1731304507203,0.42854609,80529.0,80528.0,0.002702]
[1731304507960,0.35283203,80529.0,80528.0,0.002702]
[1731304508980,0.40229352,80529.0,80528.0,0.002702]
[1731304509192,0.39598408,80529.0,80528.0,0.002702]
[1731304509752,0.4405244,80529.0,80528.0,0.002702]
[1731304509935,0.39606291,80529.0,80528.0,0.002702]
[1731304510145,0.58749698,80529.0,80528.0,0.002702]
[1731304510742,0.58549698,80529.0,80528.0,0.002702]
[1731304510947,0.58749698,80529.0,80528.0,0.002702]
[1731304511183,0.58549698,80529.0,80528.0,0.002702]
[1731304511386,0.47536291,80529.0,80528.0,0.002702]
[1731304511536,0.47336291,80529.0,80528.0,0.002702]
[1731304511753,0.47536291,80529.0,80528.0,0.002702]
[1731304511927,0.46836291,80529.0,80528.0,0.002702]
[1731304512338,0.47536291,80529.0,80528.0,0.002702]
[1731304512502,0.47336291,80529.0,80528.0,0.002702]
[1731304512862,0.47536291,80529.0,80528.0,0.002702]
[1731304513695,0.47336291,80529.0,80528.0,0.002702]
[1731304514321,0.47336291,80529.0,80523.0,0.000702]
[1731304514322,0.104349,80524.0,80523.0,0.000702]
[1731304514526,0.32529121,80524.0,80523.0,0.000702]
[1731304516410,0.28474181,80524.0,80523.0,0.000702]
[1731304516614,0.18474181,80524.0,80523.0,0.000702]
[1731304516811,0.18474181,80524.0,80523.0,0.100052]
[1731304517711,0.28409081,80524.0,80523.0,0.000702]
[1731304517866,0.24790644,80524.0,80523.0,0.000702]
[1731304518436,0.24791842,80524.0,80523.0,0.000702]
[1731304519975,0.34791842,80524.0,80523.0,0.000702]
[1731304520185,0.35291842,80524.0,80523.0,0.000702]
[1731304520639,0.35491842,80524.0,80523.0,0.000702]
[1731304520811,0.3891271,80524.0,80523.0,0.000702]
[1731304521013,0.47702935,80524.0,80523.0,0.000702]
[1731304521328,0.70909997,80524.0,80523.0,0.02498626]
[1731304521525,0.70709997,80524.0,80523.0,0.000702]
[1731304521952,0.67089129,80524.0,80523.0,0.000702]
[1731304522117,0.65026408,80524.0,80523.0,0.000702]
[1731304522313,0.67089766,80524.0,80523.0,0.000702]
[1731304522519,0.58299541,80524.0,80523.0,0.000702]
[1731304522728,0.62120992,80524.0,80523.0,0.000702]
[1731304522936,0.64363814,80524.0,80523.0,0.000702]
[1731304523780,0.92715688,80524.0,80523.0,0.000702]
[1731304524009,0.08381712,80505.0,80500.0,2.07049318]
[1731304524221,0.59867804,80505.0,80501.0,0.18415641]
[1731304524432,0.51486092,80505.0,80500.0,2.07049318]
[1731304524883,0.61423292,80505.0,80500.0,2.07049318]
[1731304525900,0.62975021,80505.0,80500.0,2.07049318]
[1731304526113,0.71259823,80505.0,80500.0,2.07049318]
[1731304526732,0.62975021,80505.0,80500.0,2.07049318]
[1731304526933,0.61423292,80505.0,80500.0,2.07049318]
[1731304528506,0.61411606,80505.0,80500.0,2.07049318]
[1731304528736,0.5508866,80505.0,80504.0,0.002702]
[1731304528941,0.51474406,80505.0,80504.0,0.002702]
[1731304529149,0.61411606,80505.0,80504.0,0.000702]
[1731304530648,0.51474406,80505.0,80504.0,0.000702]
[1731304530859,0.61411606,80505.0,80504.0,0.000702]
[1731304531418,0.51474406,80505.0,80504.0,0.000702]
[1731304531623,0.41474406,80505.0,80504.0,0.100075]
[1731304531853,0.0021114,80532.0,80504.0,0.100075]
[1731304531854,0.23007062,80524.0,80522.0,0.09935]
[1731304532064,0.18415641,80517.0,80516.0,0.106359]
[1731304532206,0.1485434,80517.0,80516.0,0.106359]
[1731304532431,0.12594221,80517.0,80516.0,0.002]
[1731304532676,0.12594221,80517.0,80508.0,0.203737]
[1731304532677,0.198718,80516.0,80508.0,0.002]
[1731304532894,0.198725,80513.0,80504.0,0.129302]
[1731304533085,0.18470893,80512.0,80505.0,0.002]
[1731304533384,0.02260324,80511.0,80505.0,0.002]
[1731304533598,0.03616348,80514.0,80512.0,0.002]
[1731304533774,0.0587713,80513.0,80507.0,0.099369]
[1731304533973,0.0587713,80512.0,80505.0,0.106371]
[1731304534197,0.18471351,80511.0,80506.0,0.099371]
[1731304534378,0.0587713,80510.0,80505.0,0.106372]
[1731304534578,0.18471351,80509.0,80505.0,0.007]
[1731304534755,0.02260782,80508.0,80505.0,0.007]
[1731304535092,0.14855003,80507.0,80505.0,0.007]
[1731304535289,0.14855003,80507.0,80504.0,0.047002]
[1731304535290,0.12594221,80507.0,80504.0,0.049002]
[1731304535508,0.12594221,80507.0,80504.0,0.146374]
[1731304535672,0.02262675,80506.0,80505.0,0.099372]
[1731304535889,0.0362028,80514.0,80513.0,0.005]
[1731304536090,0.1,80517.0,80516.0,0.002]
[1731304536304,0.12262907,80517.0,80516.0,0.002]
[1731304536705,0.13057402,80517.0,80516.0,0.002]
[1731304536935,0.099361,80515.0,80511.0,0.002]
[1731304537090,0.099361,80515.0,80514.0,0.002]
[1731304537287,0.099361,80515.0,80513.0,0.002]
[1731304537288,0.1,80514.0,80513.0,0.002]
[1731304537680,0.1,80514.0,80480.0,0.01]
[1731304537681,0.005,80487.0,80480.0,0.01]
[1731304537884,0.177,80501.0,80442.0,0.03774762]
[1731304537885,0.105,80472.0,80442.0,0.03774762]
[1731304538101,0.005,80464.0,80452.0,0.002]
[1731304538307,0.1,80471.0,80452.0,0.002]
[1731304538308,0.005,80458.0,80456.0,0.18739171]
[1731304538536,0.1,80471.0,80444.0,0.002]
[1731304538537,0.005,80457.0,80444.0,0.002]
[1731304538815,0.099441,80449.0,80448.0,0.74525829]
[1731304539016,0.12594221,80449.0,80448.0,0.74525829]
[1731304539268,0.12594221,80449.0,80448.0,0.099443]
[1731304539477,0.005,80461.0,80451.0,0.002]
[1731304539648,0.12594221,80460.0,80455.0,0.099434]
[1731304539988,0.12594221,80460.0,80456.0,0.099433]
[1731304540190,0.12594221,80460.0,80451.0,0.002]
[1731304540420,0.22537121,80460.0,80453.0,0.099436]
[1731304540630,0.12594221,80460.0,80454.0,0.099435]
[1731304540843,0.1386163,80460.0,80454.0,0.099434]
[1731304541011,0.1386163,80460.0,80454.0,0.002]
[1731304541224,0.1386163,80460.0,80456.0,0.099432]
[1731304541369,0.12594221,80460.0,80459.0,0.099429]
[1731304541575,0.005,80471.0,80470.0,0.002]
[1731304541758,0.1,80470.0,80469.0,0.002]
[1731304541970,0.005,80484.0,80479.0,0.002]
[1731304542167,0.00779121,80486.0,80475.0,0.198819]
[1731304542168,0.12594221,80483.0,80482.0,0.101401]
[1731304542382,0.12594221,80483.0,80482.0,0.002]
[1731304542745,0.12594221,80483.0,80482.0,0.101401]
[1731304542931,0.12594221,80483.0,80471.0,0.244728]
[1731304542932,0.12594221,80483.0,80480.0,0.002]
[1731304543142,0.12594221,80483.0,80476.0,0.002]
[1731304543342,0.005,80477.0,80472.0,0.002]
[1731304543520,0.005,80475.0,80469.0,0.02527194]
[1731304543722,0.12594221,80474.0,80467.0,0.18637592]
[1731304543941,0.12594221,80474.0,80470.0,0.099414]
[1731304544107,0.12594221,80474.0,80473.0,0.099412]
[1731304544322,0.12594221,80474.0,80472.0,0.099413]
[1731304545514,0.12594221,80474.0,80471.0,0.002]
[1731304545760,0.12594221,80474.0,80470.0,0.099415]
[1731304545942,0.12594221,80474.0,80467.0,0.18637592]
[1731304546331,0.12594221,80474.0,80473.0,0.002]
[1731304546545,0.12594221,80474.0,80471.0,0.002]
[1731304546746,0.12594221,80474.0,80472.0,0.002]
[1731304547381,0.12594221,80474.0,80469.0,0.101416]
[1731304547615,0.28517719,80883.0,80473.0,0.002]
[1731304547616,0.005,80483.0,80473.0,0.002]
[1731304547823,0.005,80489.0,80488.0,0.002]
[1731304548022,0.00787443,80494.0,80493.0,0.002]
[1731304548198,0.00787443,80494.0,80493.0,0.101387]
[1731304548582,0.005,80523.0,80489.0,0.198784]
[1731304548583,0.005,80504.0,80501.0,0.002]
[1731304548785,0.005,80508.0,80507.0,0.10137]
[1731304549042,0.005,80508.0,80493.0,0.02451044]
[1731304549043,0.005,80506.0,80493.0,0.02451044]
[1731304549256,0.005,80506.0,80476.0,0.37376763]
[1731304549257,0.104392,80489.0,80488.0,0.18637592]
[1731304549471,0.23033421,80489.0,80488.0,0.18637592]
[1731304549612,0.005,80482.0,80476.0,0.18837592]
[1731304549819,0.198781,80491.0,80476.0,0.18837592]
[1731304549820,0.005,80478.0,80476.0,0.18637592]
[1731304550029,0.12594221,80481.0,80476.0,0.18637592]
[1731304550030,0.12594221,80477.0,80476.0,0.18637592]
[1731304550204,0.12594221,80477.0,80476.0,0.28578392]
[1731304550407,0.12594221,80477.0,80476.0,0.099408]
[1731304550628,0.12594221,80477.0,80476.0,0.101408]
[1731304550832,0.12594221,80477.0,80473.0,0.002]
[1731304551469,0.005,80476.0,80471.0,0.002]
[1731304551665,0.12594221,80475.0,80471.0,0.002]
[1731304551906,0.12594221,80475.0,80461.0,0.198852]
[1731304551907,0.12594221,80475.0,80469.0,0.002]
[1731304552119,0.12594221,80475.0,80466.0,0.02662298]
[1731304552336,0.12594221,80475.0,80460.0,0.002]
[1731304552337,0.099417,80469.0,80460.0,0.002]
[1731304552533,0.12594221,80468.0,80460.0,0.101427]
[1731304552842,0.12594221,80468.0,80464.0,0.002]
[1731304552975,0.198797,80484.0,80464.0,0.002]
[1731304552976,0.005,80482.0,80464.0,0.002]
[1731304553176,0.105,80480.0,80477.0,0.099406]
[1731304553425,0.0305474,80482.0,80477.0,0.099406]
[1731304553426,0.1,80478.0,80477.0,0.099406]
[1731304553600,0.12594221,80478.0,80477.0,0.101407]
[1731304554449,0.12594221,80478.0,80477.0,0.002]
[1731304555007,0.12594221,80478.0,80472.0,0.101412]
[1731304555242,0.12594221,80478.0,80473.0,0.002]
[1731304555639,0.12594221,80478.0,80474.0,0.09941]
[1731304555851,0.12594221,80478.0,80473.0,0.002]
[1731304556063,0.12594221,80478.0,80472.0,0.002]
[1731304556267,0.12594221,80478.0,80474.0,0.09941]
[1731304556480,0.12594221,80478.0,80472.0,0.002]
[1731304556676,0.12594221,80478.0,80475.0,0.099409]
[1731304556818,0.12594221,80478.0,80474.0,0.09941]
[1731304557016,0.12594221,80478.0,80476.0,0.002]
[1731304557334,0.12594221,80478.0,80477.0,0.101407]
[1731304557533,0.101082,80485.0,80484.0,0.002]
[1731304557534,0.001684,80485.0,80484.0,0.002]
[1731304557781,0.22762621,80485.0,80484.0,0.002]
[1731304558844,0.22762621,80485.0,80484.0,0.101398]
[1731304559251,0.005,80481.0,80480.0,0.002]
[1731304559448,0.13094221,80481.0,80473.0,0.002]
[1731304559767,0.099414,80472.0,80469.0,0.002]
[1731304559968,0.198831,80470.0,80467.0,0.18637592]
[1731304560238,0.099418,80468.0,80467.0,0.18637592]
[1731304560454,0.005,80464.0,80452.0,0.002]
[1731304560667,0.099426,80462.0,80459.0,0.18637592]
[1731304560891,0.12594221,80461.0,80460.0,0.002]
[1731304561097,0.12594221,80461.0,80460.0,0.101428]
[1731304561350,0.005,80472.0,80465.0,0.002]
[1731304561627,0.082,80489.0,80465.0,0.002]
[1731304561628,0.005,80480.0,80472.0,0.099413]
[1731304561872,0.005,80480.0,80458.0,0.19386152]
[1731304561873,0.005,80460.0,80451.0,0.002]
[1731304562027,0.005,80466.0,80459.0,0.18637592]
[1731304562248,0.099423,80465.0,80456.0,0.002]
[1731304562457,0.005,80466.0,80465.0,0.002]
[1731304562670,0.005,80466.0,80459.0,0.18637592]
[1731304562671,0.12594221,80466.0,80459.0,0.18637592]
[1731304562874,0.02255549,80482.0,80476.0,0.198817]
[1731304563074,0.005,80487.0,80476.0,0.198817]
[1731304563304,0.005,80487.0,80483.0,0.002]
[1731304563513,0.005,80487.0,80482.0,0.0994]
[1731304563514,0.005,80488.0,80484.0,0.002]
[1731304563687,0.12762621,80485.0,80484.0,0.002]
[1731304563840,0.005,80480.0,80475.0,0.002]
[1731304564088,0.12594221,80479.0,80476.0,0.18637592]
[1731304564298,0.12594221,80479.0,80475.0,0.002]
[1731304564821,0.12594221,80479.0,80474.0,0.1246091]
[1731304564981,0.12594221,80479.0,80474.0,0.0251991]
[1731304565181,0.22534721,80479.0,80472.0,0.099412]
[1731304565389,0.12594221,80479.0,80472.0,0.198826]
[1731304565591,0.001684,80485.0,80472.0,0.198826]
[1731304565808,0.001684,80485.0,80484.0,0.099398]
[1731304566003,0.001684,80485.0,80481.0,0.002]
[1731304566216,0.12594221,80484.0,80481.0,0.002]
[1731304566429,0.005,80482.0,80481.0,0.002]
[1731304566638,0.12594221,80484.0,80481.0,0.002]
[1731304566852,0.001684,80485.0,80482.0,0.18637592]
[1731304567054,0.001684,80485.0,80484.0,0.101398]
[1731304567484,0.001684,80485.0,80484.0,0.106398]
[1731304568138,0.001684,80485.0,80484.0,0.10888272]
[1731304568337,0.001684,80485.0,80484.0,0.106398]
[1731304569823,0.005,80525.0,80522.0,0.002]
[1731304570051,0.001682,80528.0,80495.0,0.198768]
[1731304570052,0.001682,80528.0,80527.0,0.106345]
[1731304570295,0.001682,80528.0,80527.0,0.10882826]
[1731304570503,0.001682,80528.0,80527.0,0.10882815]
[1731304570661,0.001682,80528.0,80527.0,0.106345]
[1731304572529,0.001682,80528.0,80525.0,0.002]
[1731304572530,0.12762421,80528.0,80525.0,0.002]
[1731304572677,0.12762421,80528.0,80499.0,0.27837682]
[1731304572678,0.005,80522.0,80505.0,0.002]
[1731304572877,0.13920463,80527.0,80503.0,0.18637592]
[1731304572878,0.09936,80515.0,80514.0,0.18637592]
[1731304573121,0.09936,80515.0,80503.0,0.18637592]
[1731304573122,0.005,80511.0,80503.0,0.18637592]
[1731304573280,0.099387,80493.0,80492.0,0.18637592]
[1731304573507,0.23032921,80493.0,80492.0,0.18637592]
[1731304573931,0.12594221,80493.0,80479.0,0.007]
[1731304574139,0.005,80491.0,80479.0,0.002]
[1731304574349,0.12594221,80490.0,80484.0,0.002]
[1731304575586,0.12594221,80490.0,80487.0,0.099394]
[1731304575791,0.001684,80492.0,80491.0,0.002]
[1731304575999,0.001684,80492.0,80491.0,0.101389]
[1731304576202,0.001684,80492.0,80491.0,0.106389]
[1731304577153,0.082588,80536.0,80509.0,0.002]
[1731304577154,0.005,80524.0,80509.0,0.002]
[1731304577357,0.12594221,80523.0,80516.0,0.099359]
[1731304577861,0.12594221,80523.0,80502.0,0.198751]
[1731304577862,0.005,80513.0,80504.0,0.002]
[1731304578061,0.104367,80510.0,80509.0,0.18637592]
[1731304578292,0.13094221,80510.0,80504.0,0.101373]
[1731304578501,0.12594221,80509.0,80504.0,0.002]
[1731304578698,0.12594221,80509.0,80508.0,0.099369]
[1731304578904,0.006682,80528.0,80513.0,0.002]
[1731304579158,0.006682,80528.0,80510.0,0.198732]
[1731304579159,0.12594221,80527.0,80523.0,0.002]
[1731304579713,0.12594221,80527.0,80523.0,0.18837592]
[1731304579888,0.12594221,80527.0,80526.0,0.099346]
[1731304580295,0.12594221,80527.0,80520.0,0.198707]
[1731304580296,0.001682,80528.0,80527.0,0.101345]
[1731304580566,0.001682,80528.0,80527.0,0.002]
[1731304580567,0.12762421,80528.0,80527.0,0.002]
[1731304580771,0.099359,80516.0,80515.0,0.002]
[1731304580995,0.104361,80514.0,80513.0,0.002]
[1731304581170,0.104361,80514.0,80484.0,0.27837682]
[1731304581171,0.104394,80487.0,80472.0,0.099412]
[1731304581372,0.23033621,80487.0,80479.0,0.002]
[1731304581728,0.13094221,80487.0,80479.0,0.002]
[1731304581936,0.12594221,80486.0,80482.0,0.18637592]
[1731304582266,0.12594221,80486.0,80484.0,0.002]
[1731304582420,0.005,80494.0,80484.0,0.002]
[1731304582618,0.12594221,80493.0,80492.0,0.002]
[1731304583315,0.12594221,80493.0,80489.0,0.002]
[1731304583463,0.12594221,80493.0,80492.0,0.099388]
[1731304583661,0.005,80504.0,80499.0,0.002]
[1731304583879,0.12594221,80503.0,80499.0,0.002]
[1731304584098,0.22531721,80503.0,80499.0,0.002]
[1731304584276,0.12594221,80503.0,80499.0,0.002]
[1731304584752,0.099377,80502.0,80495.0,0.002]
[1731304584922,0.12594221,80501.0,80495.0,0.002]
[1731304585147,0.12594221,80501.0,80490.0,0.198782]
[1731304585312,0.005,80498.0,80487.0,0.18637592]
[1731304585553,0.099386,80495.0,80488.0,0.099393]
[1731304585784,0.12594221,80494.0,80491.0,0.099389]
[1731304586082,0.12594221,80494.0,80492.0,0.099387]
[1731304586220,0.12594221,80494.0,80488.0,0.198787]
[1731304586221,0.099374,80504.0,80493.0,0.101387]
[1731304586429,0.12594221,80503.0,80496.0,0.002]
[1731304586674,0.22531821,80503.0,80496.0,0.002]
[1731304586876,0.22531821,80503.0,80493.0,0.099386]
[1731304586877,0.099378,80501.0,80493.0,0.099386]
[1731304587078,0.12594221,80500.0,80495.0,0.099383]
[1731304587332,0.12594221,80500.0,80494.0,0.198772]
[1731304587558,0.12594221,80500.0,80496.0,0.002]
[1731304587713,0.12594221,80500.0,80498.0,0.099381]
[1731304587894,0.12594221,80500.0,80499.0,0.09938]
[1731304588238,0.12594221,80500.0,80496.0,0.101382]
[1731304588395,0.12594221,80500.0,80494.0,0.200772]
[1731304588584,0.005,80511.0,80498.0,0.002]
[1731304588784,0.001684,80523.0,80498.0,0.002]
[1731304588785,0.12594221,80510.0,80498.0,0.002]
[1731304589007,0.001684,80523.0,80522.0,0.002]
[1731304589231,0.001684,80523.0,80499.0,0.00248436]
[1731304589232,0.12762621,80523.0,80521.0,0.101352]
[1731304589433,0.13094221,80522.0,80505.0,0.099372]
[1731304589644,0.13094221,80522.0,80501.0,0.18637592]
[1731304589645,0.005,80511.0,80501.0,0.18637592]
[1731304589815,0.099361,80514.0,80506.0,0.09937]
[1731304590013,0.099367,80510.0,80509.0,0.002]
[1731304590240,0.198723,80514.0,80508.0,0.002]
[1731304590241,0.104363,80513.0,80508.0,0.002]
[1731304590486,0.099362,80513.0,80508.0,0.002]
[1731304590625,0.005,80515.0,80508.0,0.002]
[1731304590963,0.005,80511.0,80502.0,0.002]
[1731304591171,0.198733,80510.0,80502.0,0.002]
[1731304591397,0.12594221,80510.0,80507.0,0.099369]
[1731304591606,0.006682,80528.0,80519.0,0.002]
[1731304591607,0.198699,80524.0,80519.0,0.002]
[1731304591783,0.12594221,80522.0,80521.0,0.002]
[1731304591998,0.12594221,80522.0,80521.0,0.101352]
[1731304592831,0.001682,80528.0,80522.0,0.101351]
[1731304593287,0.001682,80528.0,80522.0,0.002]
[1731304593435,0.12762621,80523.0,80522.0,0.002]
[1731304593776,0.12762621,80523.0,80522.0,0.101351]
[1731304594732,0.001684,80523.0,80522.0,0.101351]
[1731304596101,0.12762621,80523.0,80522.0,0.002]
[1731304596280,0.12762621,80523.0,80507.0,0.198738]
[1731304596281,0.12762621,80523.0,80517.0,0.002]
[1731304596535,0.12594221,80522.0,80514.0,0.18637592]
[1731304596687,0.12594221,80522.0,80509.0,0.198734]
[1731304596688,0.005,80520.0,80517.0,0.002]
[1731304596875,0.12594221,80519.0,80518.0,0.002]
[1731304597500,0.001684,80523.0,80518.0,0.002]
[1731304597718,0.12594221,80522.0,80521.0,0.099352]
[1731304598068,0.12594221,80522.0,80521.0,0.101352]
[1731304598392,0.12594221,80522.0,80519.0,0.19871]
[1731304598393,0.000684,80523.0,80522.0,0.101351]
[1731304598872,0.000684,80523.0,80522.0,0.106351]
[1731304599457,0.001688,80550.0,80522.0,0.106351]
[1731304599458,0.001688,80550.0,80527.0,0.106345]
[1731304599681,0.001688,80550.0,80527.0,0.101345]
[1731304599885,0.099322,80546.0,80527.0,0.101345]
[1731304600086,0.005,80545.0,80527.0,0.101345]
[1731304600322,0.198655,80542.0,80527.0,0.101345]
[1731304600544,0.099328,80541.0,80527.0,0.101345]
[1731304600739,0.005,80545.0,80527.0,0.101345]
[1731304600740,0.099325,80544.0,80527.0,0.101345]
[1731304600916,0.005,80545.0,80527.0,0.101345]
[1731304601124,0.198641,80547.0,80527.0,0.101345]
[1731304601125,0.099332,80538.0,80527.0,0.101345]
[1731304601330,0.099331,80539.0,80527.0,0.101345]
[1731304601683,0.005,80544.0,80527.0,0.101345]
[1731304601900,0.203653,80543.0,80527.0,0.101345]
[1731304602116,0.005,80539.0,80527.0,0.101345]
[1731304602308,0.203663,80539.0,80527.0,0.002]
[1731304602509,0.203663,80539.0,80527.0,0.101345]
[1731304602768,0.005,80537.0,80525.0,0.101346]
[1731304602982,0.005,80537.0,80527.0,0.101345]
[1731304603189,0.101023,80536.0,80527.0,0.101345]
[1731304603516,0.001688,80536.0,80527.0,0.101345]
[1731304603903,0.001688,80536.0,80527.0,0.10882837]
[1731304604104,0.001688,80536.0,80527.0,0.106345]
[1731304605153,0.001688,80536.0,80527.0,0.13099955]
[1731304605364,0.001688,80536.0,80527.0,0.13348263]
[1731304605566,0.001688,80536.0,80527.0,0.25942484]
[1731304605735,0.001688,80536.0,80527.0,0.13099955]
[1731304606830,0.001688,80536.0,80527.0,0.12599955]
[1731304607269,39.22557747,80444.0,80441.0,0.18637592]
[1731304607430,35.0196069,80444.0,80443.0,2.30659785]
[1731304607638,33.41695886,80444.0,80443.0,2.39191575]
[1731304607845,32.15785821,80444.0,80443.0,1.53475986]
[1731304608090,31.51297127,80444.0,80443.0,1.40545486]
[1731304608238,31.51297127,80444.0,80443.0,1.48636751]
[1731304608449,30.57511103,80444.0,80443.0,0.5129329]
[1731304608668,29.68569082,80444.0,80443.0,0.48598246]
[1731304608885,29.68191742,80444.0,80443.0,0.5129329]
[1731304609126,29.68191742,80444.0,80443.0,0.36398246]
[1731304609743,29.68191742,80444.0,80443.0,0.32548905]
[1731304610736,29.68191742,80444.0,80443.0,0.35243949]
[1731304610914,29.68191742,80444.0,80443.0,0.39096643]
[1731304610915,29.16917443,80444.0,80443.0,0.39096643]
[1731304611083,29.0245548,80444.0,80443.0,0.39096643]
[1731304611287,28.96487041,80444.0,80443.0,0.39096643]
[1731304611633,28.96487041,80444.0,80443.0,0.51396643]
[1731304611848,28.96487041,80444.0,80443.0,0.48701599]
[1731304612058,28.91514641,80444.0,80443.0,0.51145907]
[1731304612208,28.84056041,80444.0,80443.0,0.51145907]
[1731304612605,28.81569841,80444.0,80443.0,0.51145907]
[1731304612805,28.71625041,80444.0,80443.0,0.51145907]
[1731304613008,28.67735649,80444.0,80443.0,0.51145907]
[1731304613266,28.53269878,80444.0,80443.0,0.51145907]
[1731304613422,28.43465762,80444.0,80443.0,0.61145907]
[1731304613624,28.27997518,80444.0,80443.0,0.61145907]
[1731304613898,28.25511318,80444.0,80443.0,0.61145907]
[1731304614171,28.2059582,80444.0,80443.0,0.61145907]
[1731304614386,28.18094895,80444.0,80443.0,0.61145907]
[1731304614594,27.88858522,80444.0,80443.0,0.61145907]
[1731304614831,27.64049312,80444.0,80443.0,0.61145907]
[1731304615003,27.64049312,80444.0,80443.0,0.58528917]
[1731304615004,27.4113197,80444.0,80443.0,0.58528917]
[1731304615660,27.25820611,80444.0,80443.0,0.56942143]
[1731304616066,27.23092891,80444.0,80443.0,0.56942143]
[1731304616332,27.10887181,80444.0,80443.0,0.56942143]
[1731304616677,26.98456181,80444.0,80443.0,0.56942143]
[1731304616889,26.91921889,80444.0,80443.0,0.56942143]
[1731304617108,26.81915596,80444.0,80443.0,0.56942143]
[1731304617320,26.54325192,80444.0,80443.0,0.56942143]
[1731304617679,25.94953833,80444.0,80443.0,0.56942143]
[1731304617856,25.87495233,80444.0,80443.0,0.68033802]
[1731304618055,25.87495233,80444.0,80443.0,0.54515149]
[1731304618439,25.83495233,80444.0,80443.0,0.54515149]
[1731304618687,25.69440168,80444.0,80443.0,0.54515149]
[1731304619115,25.69440168,80444.0,80443.0,0.42215149]
[1731304619352,25.69440168,80444.0,80443.0,0.49615226]
[1731304619555,25.69440168,80444.0,80443.0,0.42215149]
[1731304619802,25.69440168,80444.0,80443.0,0.49615226]
[1731304619976,25.69440168,80444.0,80443.0,0.49615458]
[1731304620133,25.66953968,80444.0,80443.0,0.49615458]
[1731304620338,25.57009168,80444.0,80443.0,0.44515149]
[1731304620538,25.50408072,80444.0,80443.0,0.63765535]
[1731304620779,25.33052981,80444.0,80443.0,0.54515149]
[1731304620985,25.19070504,80444.0,80443.0,0.54515149]
[1731304621128,25.14257463,80444.0,80443.0,0.54515149]
[1731304621341,24.938546,80444.0,80443.0,0.54515149]
[1731304621561,24.913684,80444.0,80443.0,0.54515149]
[1731304621771,24.814236,80444.0,80443.0,0.54515149]
[1731304621986,23.75339858,80444.0,80443.0,0.55668821]
[1731304622212,23.67319063,80444.0,80443.0,0.54515149]
[1731304622418,23.65231843,80444.0,80443.0,0.54515149]
[1731304622625,23.18673446,80444.0,80443.0,0.54515149]
[1731304622872,23.18673446,80444.0,80443.0,0.95868879]
[1731304622873,21.48704218,80444.0,80443.0,0.95868879]
[1731304623107,21.48704218,80444.0,80443.0,0.96142185]
[1731304623108,19.76703025,80444.0,80443.0,0.96142185]
[1731304623331,18.14831816,80444.0,80443.0,0.95868879]
[1731304623555,18.08734493,80444.0,80443.0,0.95868879]
[1731304623758,17.98789693,80444.0,80443.0,0.95868879]
[1731304623966,17.98789693,80444.0,80443.0,0.81466545]
[1731304624657,17.91331093,80444.0,80443.0,0.81466545]
[1731304624849,17.86358693,80444.0,80443.0,0.81466545]
[1731304625076,17.08894907,80444.0,80443.0,0.81466545]
[1731304625288,17.07349588,80444.0,80443.0,0.81466545]
[1731304625722,16.94918588,80444.0,80443.0,0.67728273]
[1731304626688,16.82487588,80444.0,80443.0,0.67728273]
[1731304626948,16.82655988,80444.0,80443.0,1.17728273]
[1731304627156,16.82655988,80444.0,80443.0,1.04295873]
[1731304627620,16.77683588,80444.0,80443.0,1.04295873]
[1731304627823,16.77683588,80444.0,80443.0,0.54295873]
[1731304627824,16.70224988,80444.0,80443.0,0.54295873]
[1731304628563,16.67738788,80444.0,80443.0,0.51441815]
[1731304628774,16.57793988,80444.0,80443.0,0.51441815]
[1731304629131,16.57793988,80444.0,80443.0,0.54295873]
[1731304629668,16.57793988,80444.0,80443.0,0.70683786]
[1731304629669,16.47849188,80444.0,80443.0,0.70683786]
[1731304629869,16.45362988,80444.0,80443.0,0.73992795]
[1731304630089,16.45362988,80444.0,80443.0,0.73856142]
[1731304630265,16.45362988,80444.0,80443.0,0.81223129]
[1731304630603,16.40390588,80444.0,80443.0,0.81223129]
[1731304630809,16.32931988,80444.0,80443.0,0.56595873]
[1731304631023,16.32931988,80444.0,80443.0,0.71995173]
[1731304631593,16.31188988,80444.0,80443.0,0.71995173]
[1731304631792,16.25959988,80444.0,80443.0,0.71995173]
[1731304632304,16.25571641,80444.0,80443.0,0.71995173]
[1731304632873,16.06442295,80444.0,80443.0,0.7291292]
[1731304633081,15.65281848,80444.0,80443.0,0.57601294]
[1731304633304,15.56552195,80444.0,80443.0,0.59141705]
[1731304633548,15.56552195,80444.0,80443.0,0.71640975]
[1731304633759,15.56552195,80444.0,80443.0,1.06546894]
[1731304634104,15.56552195,80444.0,80443.0,1.09141705]
[1731304634657,15.56552195,80444.0,80443.0,1.06546894]
[1731304635060,15.56552195,80444.0,80443.0,0.96601994]
[1731304635268,15.53624795,80444.0,80443.0,1.09196215]
[1731304635920,15.35287013,80444.0,80443.0,1.0752182]
[1731304637661,15.35287013,80444.0,80443.0,1.0522182]
[1731304637786,15.35287013,80444.0,80443.0,1.08024677]
[1731304638002,15.35287013,80444.0,80443.0,1.45317677]
[1731304638567,15.34403513,80444.0,80443.0,1.45317677]
[1731304638933,15.32996878,80444.0,80443.0,1.47617677]
[1731304639322,15.31366438,80444.0,80443.0,1.47617677]
[1731304639542,15.30491642,80444.0,80443.0,1.47617677]
[1731304639758,15.30491642,80444.0,80443.0,1.48686865]
[1731304639956,15.30491642,80444.0,80443.0,1.61187515]
[1731304640333,15.30491642,80444.0,80443.0,1.60118327]
[1731304640743,15.30491642,80444.0,80443.0,1.47617677]
[1731304641111,15.30194042,80444.0,80443.0,1.47617677]
[1731304641288,15.30094842,80444.0,80443.0,1.47617677]
[1731304642289,15.26415265,80444.0,80443.0,1.47920141]